fUSD/lending_fUSD_20250117
["ID","MTS","AMOUNT","RATE_DAILY","PERIOD"]
[349374364,1737142262648,-500.0,0.00023199,2]
[349374365,1737142262657,-897.84,0.00023199,2]
[349374366,1737142262667,-897.86,0.00023199,2]
[349374367,1737142262676,-500.0,0.00023199,2]
[349374368,1737142262685,-500.0,0.00023199,2]
[349374369,1737142262695,-500.0,0.00023199,2]
[349374370,1737142262704,-500.0,0.00023199,2]
[349374371,1737142262713,-500.0,0.00023199,2]
[349374372,1737142262723,-500.0,0.00023199,2]
[349374373,1737142262732,-500.0,0.00023199,2]
[349374374,1737142262742,-500.0,0.00023199,2]
[349374375,1737142262751,-500.0,0.00023199,2]
[349374376,1737142262761,-500.0,0.00023199,2]
[349374377,1737142262771,-500.0,0.00023199,2]
[349374378,1737142262780,-500.0,0.00023199,2]
[349374379,1737142262790,-500.0,0.00023199,2]
[349374380,1737142262799,-500.0,0.00023199,2]
[349374381,1737142262808,-500.0,0.00023199,2]
[349374382,1737142262818,-500.0,0.00023199,2]
[349374383,1737142262828,-500.0,0.00023199,2]
[349374384,1737142262837,-500.0,0.00023199,2]
[349374385,1737142262847,-500.0,0.00023199,2]
[349374386,1737142262856,-500.0,0.00023199,2]
[349374387,1737142262867,-302.14548787,0.00023199,2]
[349374388,1737142262876,-564.65,0.00023199,2]
[349374389,1737142262885,-500.0,0.00023199,2]
[349374390,1737142262894,-500.0,0.00023199,2]
[349374391,1737142262903,-583.76,0.00023199,2]
[349374392,1737142262912,-210.22,0.00023199,2]
[349374393,1737142262922,-583.76,0.00023199,2]
[349374394,1737142262932,-583.76,0.00023199,2]
[349374395,1737142262944,-583.76,0.00023199,2]
[349374396,1737142262954,-583.8,0.00023199,2]
[349374397,1737142262964,-763.42,0.00023199,2]
[349374398,1737142262974,-763.42,0.00023199,2]
[349374399,1737142262984,-763.42,0.00023199,2]
[349374400,1737142263106,-763.42,0.00023199,2]
[349374401,1737142263119,-763.4917186,0.00023199,2]
[349374402,1737142263129,-500.0,0.00023199,2]
[349374403,1737142263140,-500.0,0.00023199,2]
[349374404,1737142263150,-500.0,0.00023199,2]
[349374405,1737142263160,-500.0,0.00023199,2]
[349374406,1737142263169,-500.0,0.00023199,2]
[349374407,1737142263179,-500.0,0.00023199,2]
[349374408,1737142263189,-500.0,0.00023199,2]
[349374409,1737142263199,-500.0,0.00023199,2]
[349374410,1737142263209,-500.0,0.00023199,2]
[349374411,1737142263218,-500.0,0.00023199,2]
[349374412,1737142263228,-1106.62,0.00023199,2]
[349374413,1737142263238,-500.0,0.00023199,2]
[349374414,1737142263248,-1106.62,0.00023199,2]
[349374415,1737142263257,-426.43843873,0.00023199,2]
[349374416,1737142263267,-1106.62,0.00023199,2]
[349374417,1737142263276,-1106.62,0.00023199,2]
[349374418,1737142263286,-1106.69,0.00023199,2]
[349374419,1737142263295,-1849610.37949917,0.00023199,2]
[349374420,1737142263305,-12458.15344362,0.000232,2]
[349374421,1737142263315,-212.66,0.000232,2]
[349374422,1737142263324,-635.0,0.000232,2]
[349374423,1737142263334,-260.549,0.000232,2]
[349374424,1737142263343,-569.29,0.000232,2]
[349374425,1737142263353,-1862.0,0.000232,2]
[349374426,1737142263363,-1260.0,0.000232,2]
[349374427,1737142263373,-907.0,0.000232,2]
[349374428,1737142263382,-2945.0,0.000232,2]
[349374429,1737142263392,-820.0,0.000232,2]
[349374430,1737142263403,-150.0,0.000232,2]
[349374431,1737142263412,-3981.0,0.000232,2]
[349374432,1737142263422,-537.0,0.000232,2]
[349374433,1737142263431,-1105.0,0.000232,2]
[349374434,1737142263441,-3899.0,0.000232,2]
[349374435,1737142263451,-150.0,0.000232,2]
[349374436,1737142263461,-1288.759,0.000232,2]
[349374437,1737142263471,-713.738,0.000232,2]
[349374438,1737142263480,-151.359,0.000232,2]
[349374439,1737142263490,-843251.15358705,0.000232,2]
[349374440,1737142263702,-93097.71616636,0.000232,2]
[349374441,1737142263789,-500.0,0.00021917,2]
[349374442,1737142263798,-500.0,0.00021917,2]
[349374443,1737142263808,-500.0,0.00021917,2]
[349374444,1737142263817,-500.0,0.00021917,2]
[349374445,1737142263827,-500.0,0.00021917,2]
[349374446,1737142263836,-357.5,0.00021917,2]
[349374447,1737142263852,-142.5,0.00021917,2]
[349374448,1737142263862,-500.0,0.00021917,2]
[349374449,1737142263872,-500.0,0.00021917,2]
[349374450,1737142263882,-500.0,0.00023199,2]
[349374451,1737142263891,-500.0,0.00023199,2]
[349374452,1737142263901,-500.0,0.00023199,2]
[349374453,1737142263911,-303.93567655,0.00023199,2]
[349374454,1737142263920,-83.64332902,0.000232,2]
[349374455,1737142263931,-15683.1146987,0.000232,2]
[349374456,1737142263945,-1059.692,0.000232,2]
[349374457,1737142263961,-501.48066161,0.00023198,2]
[349374458,1737142263970,-4832.77933839,0.000232,2]
[349374459,1737142263982,-337.91385831,0.000232,2]
[349374460,1737142263993,-673.26999999,0.000232,2]
[349374461,1737142264005,-519.8,0.000232,2]
[349374462,1737142264018,-290.15999999,0.000232,2]
[349374463,1737142264029,-368.5302207,0.000232,2]
[349374464,1737142264040,-335.342,0.000232,2]
[349374465,1737142264051,-2650.74151418,0.000232,2]
[349374466,1737142264062,-30921.04329537,0.000232,2]
[349374467,1737142264085,-3110.05160799,0.000232,2]
[349374468,1737142264326,-6906.78925409,0.00013459,2]
[349374469,1737142264335,-500.0,0.00021917,2]
[349374470,1737142264345,-500.0,0.00021917,2]
[349374471,1737142264354,-500.0,0.00021917,2]
[349374472,1737142264364,-500.0,0.00021917,2]
[349374473,1737142264374,-500.0,0.00021917,2]
[349374474,1737142264384,-500.0,0.00021917,2]
[349374475,1737142264394,-500.0,0.00021917,2]
[349374476,1737142264403,-500.0,0.00021917,2]
[349374477,1737142264413,-500.0,0.00021917,2]
[349374478,1737142264422,-500.0,0.00021917,2]
[349374479,1737142264431,-500.0,0.00021917,2]
[349374480,1737142264441,-500.0,0.00021917,2]
[349374481,1737142264450,-500.0,0.00021917,2]
[349374482,1737142264459,-500.0,0.00021917,2]
[349374483,1737142264468,-500.0,0.00021917,2]
[349374484,1737142264477,-500.0,0.00021917,2]
[349374485,1737142264486,-500.0,0.00021917,2]
[349374486,1737142264495,-500.0,0.00021917,2]
[349374487,1737142264504,-500.1,0.00021917,2]
[349374488,1737142264514,-500.0,0.00021917,2]
[349374489,1737142264523,-500.0,0.00021917,2]
[349374490,1737142264532,-500.0,0.00021917,2]
[349374491,1737142264541,-500.0,0.00022654,2]
[349374492,1737142264550,-500.0,0.00022876,2]
[349374493,1737142264559,-500.0,0.00023097,2]
[349374494,1737142264568,-1481.44153432,0.00023099,2]
[349374495,1737142264577,-500.0,0.00023198,2]
[349374496,1737142264586,-500.0,0.00023198,2]
[349374497,1737142264595,-500.0,0.00023198,2]
[349374498,1737142264604,-500.0,0.00023198,2]
[349374499,1737142264614,-500.0,0.00023199,2]
[349374500,1737142264623,-500.0,0.00023199,2]
[349374501,1737142264632,-500.0,0.00023199,2]
[349374502,1737142264642,-500.0,0.00023199,2]
[349374503,1737142264651,-500.0,0.00023199,2]
[349374504,1737142264661,-500.0,0.00023199,2]
[349374505,1737142264671,-500.0,0.00023199,2]
[349374506,1737142264681,-2017.115,0.000232,2]
[349374507,1737142264690,-648522.77004085,0.000232,2]
[349374508,1737142264705,-855.48118852,0.000232,2]
[349374509,1737142264721,-500.0,0.00021917,2]
[349374510,1737142264730,-311.5400475,0.000232,2]
[349374511,1737142264741,-5213.30119489,0.000232,2]
[349374512,1737142265092,-500.0,0.00021917,2]
[349374513,1737142265101,-500.0,0.00021917,2]
[349374514,1737142265111,-500.0,0.00021917,2]
[349374515,1737142265125,-500.0,0.00021917,2]
[349374516,1737142265134,-500.0,0.00021917,2]
[349374517,1737142265144,-500.0,0.00021917,2]
[349374518,1737142265153,-323.6,0.00021917,2]
[349374519,1737142265162,-500.0,0.00021917,2]
[349374520,1737142265172,-500.0,0.00021917,2]
[349374521,1737142265181,-500.0,0.00021917,2]
[349374522,1737142265191,-500.0,0.00021917,2]
[349374523,1737142265200,-500.0,0.00021917,2]
[349374524,1737142265210,-500.0,0.00021917,2]
[349374525,1737142265220,-500.0,0.00023097,2]
[349374526,1737142265230,-500.0,0.00023198,2]
[349374527,1737142265240,-500.0,0.00023198,2]
[349374528,1737142265250,-500.0,0.00023198,2]
[349374529,1737142265259,-500.0,0.00023198,2]
[349374530,1737142265269,-500.0,0.00023199,2]
[349374531,1737142265279,-500.0,0.00023199,2]
[349374532,1737142265289,-500.0,0.00023199,2]
[349374533,1737142265299,-500.0,0.00023199,2]
[349374534,1737142265309,-500.0,0.00023199,2]
[349374535,1737142265319,-500.0,0.00023199,2]
[349374536,1737142265329,-500.0,0.00023199,2]
[349374537,1737142265339,-500.0,0.00023199,2]
[349374538,1737142265349,-500.0,0.00023199,2]
[349374539,1737142265360,-244.09,0.00023199,2]
[349374540,1737142265376,-500.0,0.00023199,2]
[349374541,1737142265386,-78960.6571883,0.000232,2]
[349374542,1737142265413,-5267.5,0.000232,2]
[349374543,1737142265440,-500.0,0.00021917,2]
[349374544,1737142265450,-500.0,0.00021917,2]
[349374545,1737142265460,-1481.44153432,0.000231,2]
[349374546,1737142265469,-500.0,0.00023199,2]
[349374547,1737142265479,-1052912.58705698,0.000232,2]
[349374548,1737142265491,-27872.06175429,0.000232,2]
[349374549,1737142265502,-1054.74153989,0.000232,2]
[349374550,1737142265514,-2649.03118856,0.000232,2]
[349374551,1737142265603,-500.0,0.00021917,2]
[349374552,1737142265617,-500.0,0.00023199,2]
[349374553,1737142265627,-130820.41170495,0.000232,2]
[349374558,1737142930012,151.0,0.00024,120]
[349374560,1737143197581,1744.35,0.00017635,120]
[349374561,1737143233142,-226.6,0.00010137,2]
[349374562,1737143233164,-114.81172534,0.00010698,2]
[349374563,1737143233193,-2707.80428666,0.00010698,2]
[349374564,1737143233215,-9627.8359872,0.00010808,2]
[349374565,1737143247114,-1663.77239982,0.00010808,2]
[349374567,1737143369087,-260.11,0.00010137,2]
[349374568,1737143369109,-2161.30991096,0.00010508,2]
[349374578,1737143431784,-11872.55445532,0.00010508,2]
[349374579,1737143431794,-1324.0275527,0.00010608,2]
[349374580,1737143431803,-201.27629017,0.00010708,2]
[349374581,1737143431813,-927.68915845,0.0001112,2]
[349374582,1737143431822,-287.96,0.0001355,2]
[349374583,1737143431831,-13395.42081503,0.0001355,2]
[349374584,1737143431840,-150.0,0.00014054,2]
[349374585,1737143431850,-150.0,0.00014055,2]
[349374586,1737143431859,-860.66,0.00014077,2]
[349374587,1737143431869,-165.43,0.00014543,2]
[349374588,1737143431878,-505.55,0.00015217,2]
[349374589,1737143431887,-250.0,0.00015647,2]
[349374590,1737143431897,-463.27,0.00015746,2]
[349374591,1737143431906,-176.5,0.00015859,2]
[349374592,1737143431915,-200.0,0.00015937,2]
[349374593,1737143431925,-1000.0,0.00016033,2]
[349374594,1737143431935,-862.14,0.00016033,2]
[349374595,1737143431944,-860.66,0.00016341,2]
[349374596,1737143431953,-150.0,0.00016438,2]
[349374597,1737143431963,-167.07,0.00016712,2]
[349374598,1737143431972,-226.6,0.00016813,2]
[349374599,1737143431981,-260.11,0.00016813,2]
[349374600,1737143431991,-505.55,0.00017119,2]
[349374601,1737143432000,-250.0,0.00017123,2]
[349374602,1737143432009,-14403.0276332,0.00017627,2]
[349374603,1737143432021,-623.44006736,0.00017627,2]
[349374604,1737143432032,-344.14959643,0.00017627,2]
[349374605,1737143432065,-1964.66,0.00017627,2]
[349374606,1737143432076,-6564.72270301,0.00017627,2]
[349374607,1737143432085,-224.34729699,0.00017726,2]
[349374608,1737143432096,-81.38270301,0.00017726,2]
[349374609,1737143432106,-350.0,0.00017808,2]
[349374610,1737143432115,-1851.22,0.00017817,2]
[349374611,1737143432124,-789.10229699,0.00017817,2]
[349374612,1737143432136,-710.89770301,0.00017817,2]
[349374613,1737143432146,-201.27629017,0.00017937,2]
[349374614,1737143432155,-1000.0,0.00018037,2]
[349374615,1737143432164,-930.39,0.00018082,2]
[349374616,1737143432173,-21.46600696,0.00018127,2]
[349374617,1737143432184,-199.62399304,0.00018127,2]
[349374618,1737143432197,-471.51,0.00018162,2]
[349374619,1737143432211,-250.0,0.00018284,2]
[349374621,1737143432222,-536.62,0.00018309,2]
[349374623,1737143432231,-1200.52994765,0.0001835,2]
[349374625,1737143432242,-2292.43245301,0.0001835,2]
[349374626,1737143432253,-1627.44082092,0.0001835,2]
[349374627,1737143432262,-200.0,0.00018356,2]
[349374628,1737143432272,-210.39362489,0.00018493,2]
[349374629,1737143432281,-860.66,0.00018605,2]
[349374630,1737143432291,-930.39,0.00018751,2]
[349374631,1737143432301,-243.13895306,0.00019021,2]
[349374632,1737143432315,-262.41104694,0.00019021,2]
[349374634,1737143432324,-1434.335,0.00019372,2]
[349374636,1737143432333,-177.675,0.00019372,2]
[349374638,1737143432343,-930.39,0.0001942,2]
[349374640,1737143432352,-16767.93817399,0.00019554,2]
[349374644,1737143432391,-23993.06182601,0.00019554,2]
[349374646,1737143432401,-5326.03031114,0.0002,2]
[349374648,1737143432410,-1000.0,0.00020041,2]
[349374651,1737143432419,-930.39,0.00020089,2]
[349374654,1737143432428,-150.0,0.0002055,2]
[349374656,1737143432437,-2355.0,0.000206,2]
[349374659,1737143432449,-216.74324859,0.000206,2]
[349374680,1737143432624,-200.30536773,0.000207,2]
[349374682,1737143432635,-150.0,0.00020726,2]
[349374684,1737143432645,-930.39,0.00020758,2]
[349374686,1737143432655,-150.0,0.0002076,2]
[349374689,1737143432664,-150.0,0.00020779,2]
[349374691,1737143432674,-150.0,0.00020832,2]
[349374692,1737143432683,-860.66,0.00020868,2]
[349374695,1737143432693,-505.55,0.00020923,2]
[349374696,1737143432702,-150.0,0.00020935,2]
[349374697,1737143432712,-150.0,0.00020978,2]
[349374698,1737143432721,-150.0,0.00021005,2]
[349374699,1737143432731,-150.0,0.00021303,2]
[349374700,1737143432740,-150.0,0.00021329,2]
[349374701,1737143432750,-150.0,0.00021394,2]
[349374702,1737143432759,-150.0,0.00021473,2]
[349374703,1737143432768,-150.0,0.000216,2]
[349374704,1737143432777,-1000.0,0.00021622,2]
[349374705,1737143432786,-150.0,0.00021679,2]
[349374706,1737143432795,-150.0,0.00021698,2]
[349374707,1737143432804,-400.0,0.000217,7]
[349374708,1737143432814,-150.0,0.00021717,2]
[349374710,1737143432823,-150.0,0.0002172,2]
[349374712,1737143432832,-1000.0,0.00021787,2]
[349374714,1737143432842,-800.0,0.000218,7]
[349374716,1737143432851,-1200.0,0.000219,7]
[349374718,1737143432860,-500.0,0.00021917,2]
[349374720,1737143432870,-500.0,0.00021917,2]
[349374722,1737143432879,-2911.589046,0.00021917,2]
[349374724,1737143432888,-2911.589046,0.00021917,2]
[349374726,1737143432898,-2035.665477,0.00021917,2]
[349374728,1737143432907,-2035.665477,0.00021917,2]
[349374730,1737143432916,-153.022109,0.00021917,2]
[349374732,1737143432925,-153.022109,0.00021917,2]
[349374734,1737143432935,-500.0,0.00021917,2]
[349374736,1737143432944,-500.0,0.00021917,2]
[349374738,1737143432953,-500.0,0.00021917,2]
[349374740,1737143432962,-500.0,0.00021917,2]
[349374742,1737143432972,-500.0,0.00021917,2]
[349374744,1737143432981,-500.0,0.00021917,2]
[349374746,1737143432991,-500.0,0.00021917,2]
[349374748,1737143433000,-500.0,0.00021917,2]
[349374750,1737143433009,-500.0,0.00021917,2]
[349374752,1737143433018,-500.0,0.00021917,2]
[349374754,1737143433027,-500.0,0.00021917,2]
[349374756,1737143433036,-500.0,0.00021917,2]
[349374758,1737143433046,-500.0,0.00021917,2]
[349374760,1737143433055,-500.0,0.00021917,2]
[349374762,1737143433064,-500.0,0.00021917,2]
[349374764,1737143433073,-500.0,0.00021917,2]
[349374766,1737143433082,-596.18414763,0.00021917,2]
[349374768,1737143433091,-500.0,0.00021917,2]
[349374770,1737143433101,-500.0,0.00021917,2]
[349374771,1737143433111,-500.0,0.00021917,2]
[349374773,1737143433124,-500.0,0.00021917,2]
[349374775,1737143433133,-500.0,0.00021917,2]
[349374777,1737143433143,-167.70408266,0.00021917,2]
[349374779,1737143433152,-500.0,0.00021917,2]
[349374781,1737143433161,-500.0,0.00021917,2]
[349374783,1737143433171,-500.0,0.00021917,2]
[349374785,1737143433181,-500.0,0.00021917,2]
[349374787,1737143433190,-500.0,0.00021917,2]
[349374789,1737143433200,-500.0,0.00021917,2]
[349374791,1737143433209,-500.0,0.00021917,2]
[349374793,1737143433218,-500.0,0.00021917,2]
[349374795,1737143433227,-500.0,0.00021917,2]
[349374797,1737143433236,-500.0,0.00021917,2]
[349374799,1737143433245,-501.71080482,0.00021917,2]
[349374801,1737143433255,-373.34245107,0.00021917,2]
[349374803,1737143433264,-500.0,0.00021917,2]
[349374805,1737143433273,-500.0,0.00021917,2]
[349374807,1737143433282,-500.0,0.00021917,2]
[349374809,1737143433291,-500.0,0.00021917,2]
[349374811,1737143433300,-500.0,0.00021917,2]
[349374813,1737143433313,-500.0,0.00021917,2]
[349374815,1737143433322,-500.0,0.00021917,2]
[349374817,1737143433332,-521.70620342,0.00021917,2]
[349374819,1737143433341,-500.0,0.00021917,2]
[349374821,1737143433350,-500.0,0.00021917,2]
[349374823,1737143433359,-500.0,0.00021917,2]
[349374826,1737143433378,-500.0,0.00021917,2]
[349374828,1737143433391,-500.0,0.00021917,2]
[349374830,1737143433402,-500.0,0.00021917,2]
[349374832,1737143433412,-506.39140587,0.00021917,2]
[349374834,1737143433421,-500.0,0.00021917,2]
[349374836,1737143433431,-502.36567681,0.00021917,2]
[349374838,1737143433441,-500.0,0.00021917,2]
[349374840,1737143433450,-500.0,0.00021917,2]
[349374842,1737143433459,-583.54483254,0.00021917,2]
[349374844,1737143433469,-500.0,0.00021917,2]
[349374846,1737143433479,-500.0,0.00021917,2]
[349374848,1737143433489,-500.0,0.00021917,2]
[349374850,1737143433499,-500.0,0.00021917,2]
[349374852,1737143433508,-500.0,0.00021917,2]
[349374854,1737143433518,-500.0,0.00021917,2]
[349374856,1737143433527,-500.0,0.00021917,2]
[349374858,1737143433537,-500.0,0.00021917,2]
[349374860,1737143433546,-500.0,0.00021917,2]
[349374862,1737143433556,-500.0,0.00021917,2]
[349374864,1737143433566,-500.0,0.00021917,2]
[349374866,1737143433575,-617.70760635,0.00021917,2]
[349374868,1737143433586,-500.0,0.00021917,2]
[349374870,1737143433596,-500.0,0.00021917,2]
[349374872,1737143433606,-500.0,0.00021917,2]
[349374875,1737143433616,-500.0,0.00021917,2]
[349374877,1737143433626,-500.0,0.00021917,2]
[349374879,1737143433639,-500.0,0.00021917,2]
[349374881,1737143433648,-500.0,0.00021917,2]
[349374883,1737143433659,-500.0,0.00021917,2]
[349374885,1737143433670,-500.0,0.00021917,2]
[349374886,1737143433679,-500.0,0.00021917,2]
[349374889,1737143433690,-500.0,0.00021917,2]
[349374891,1737143433700,-500.0,0.00021917,2]
[349374893,1737143433709,-505.55386975,0.00021917,2]
[349374895,1737143433719,-500.0,0.00021917,2]
[349374897,1737143433728,-500.0,0.00021917,2]
[349374899,1737143433738,-500.0,0.00021917,2]
[349374901,1737143433747,-591.13873188,0.00021917,2]
[349374902,1737143433757,-500.0,0.00021917,2]
[349374904,1737143433767,-500.0,0.00021917,2]
[349374905,1737143433777,-500.0,0.00021917,2]
[349374907,1737143433787,-500.0,0.00021917,2]
[349374909,1737143433797,-500.0,0.00021917,2]
[349374911,1737143433807,-500.0,0.00021917,2]
[349374913,1737143433817,-500.0,0.00021917,2]
[349374915,1737143433826,-500.0,0.00021917,2]
[349374917,1737143433836,-500.0,0.00021917,2]
[349374919,1737143433845,-500.0,0.00021917,2]
[349374921,1737143433854,-500.0,0.00021917,2]
[349374923,1737143433865,-500.0,0.00021917,2]
[349374925,1737143433875,-500.0,0.00021917,2]
[349374927,1737143433884,-500.0,0.00021917,2]
[349374929,1737143433893,-500.0,0.00021917,2]
[349374931,1737143433903,-500.0,0.00021917,2]
[349374933,1737143433913,-500.0,0.00021917,2]
[349374934,1737143433922,-558.70040747,0.00021917,2]
[349374936,1737143433932,-500.0,0.00021917,2]
[349374938,1737143433942,-500.0,0.00021917,2]
[349374940,1737143433951,-500.0,0.00021917,2]
[349374942,1737143433961,-500.0,0.00021917,2]
[349374944,1737143433970,-500.0,0.00021917,2]
[349374946,1737143433979,-500.0,0.00021917,2]
[349374948,1737143433988,-500.0,0.00021917,2]
[349374950,1737143433998,-500.0,0.00021917,2]
[349374952,1737143434008,-500.0,0.00021917,2]
[349374954,1737143434017,-500.0,0.00021917,2]
[349374956,1737143434027,-500.0,0.00021917,2]
[349374958,1737143434036,-500.0,0.00021917,2]
[349374960,1737143434046,-500.0,0.00021917,2]
[349374962,1737143434056,-500.0,0.00021917,2]
[349374964,1737143434066,-500.0,0.00021917,2]
[349374966,1737143434076,-500.0,0.00021917,2]
[349374968,1737143434086,-500.0,0.00021917,2]
[349374970,1737143434096,-500.0,0.00021917,2]
[349374972,1737143434106,-500.0,0.00021917,2]
[349374974,1737143434115,-500.0,0.00021917,2]
[349374976,1737143434125,-500.0,0.00021917,2]
[349374978,1737143434135,-500.0,0.00021917,2]
[349374980,1737143434145,-630.007786,0.00021917,2]
[349374982,1737143434155,-500.0,0.00021917,2]
[349374984,1737143434164,-500.0,0.00021917,2]
[349374986,1737143434173,-500.0,0.00021917,2]
[349374988,1737143434183,-500.0,0.00021917,2]
[349374990,1737143434192,-500.0,0.00021917,2]
[349374992,1737143434201,-500.0,0.00021917,2]
[349374994,1737143434210,-500.0,0.00021917,2]
[349374996,1737143434219,-274.06,0.00021917,2]
[349374998,1737143434229,-500.0,0.00021917,2]
[349375000,1737143434238,-500.0,0.00021917,2]
[349375002,1737143434247,-500.0,0.00021917,2]
[349375004,1737143434256,-500.0,0.00021917,2]
[349375006,1737143434265,-500.0,0.00021917,2]
[349375008,1737143434275,-500.0,0.00021917,2]
[349375009,1737143434284,-500.0,0.00021917,2]
[349375012,1737143434294,-500.0,0.00021917,2]
[349375013,1737143434304,-500.0,0.00021917,2]
[349375015,1737143434316,-500.0,0.00021917,2]
[349375017,1737143434325,-500.0,0.00021917,2]
[349375019,1737143434334,-500.0,0.00021917,2]
[349375021,1737143434343,-500.3076833,0.00021917,2]
[349375023,1737143434355,-586.06889711,0.00021917,2]
[349375026,1737143434365,-500.0,0.00021917,2]
[349375028,1737143434375,-501.29516277,0.00021917,2]
[349375030,1737143434385,-500.0,0.00021917,2]
[349375032,1737143434396,-505.19565234,0.00021917,2]
[349375033,1737143434405,-500.0,0.00021917,2]
[349375036,1737143434416,-500.0,0.00021917,2]
[349375038,1737143434426,-500.0,0.00021917,2]
[349375039,1737143434435,-500.0,0.00021917,2]
[349375041,1737143434444,-500.0,0.00021917,2]
[349375043,1737143434453,-500.0,0.00021917,2]
[349375045,1737143434463,-500.0,0.00021917,2]
[349375047,1737143434472,-500.0,0.00021917,2]
[349375049,1737143434482,-500.0,0.00021917,2]
[349375051,1737143434492,-500.0,0.00021917,2]
[349375053,1737143434502,-500.0,0.00021917,2]
[349375055,1737143434511,-500.0,0.00021917,2]
[349375057,1737143434521,-500.0,0.00021917,2]
[349375059,1737143434531,-500.0,0.00021917,2]
[349375061,1737143434540,-500.0,0.00021917,2]
[349375063,1737143434550,-273.51374204,0.00021917,2]
[349375065,1737143434559,-500.0,0.00021917,2]
[349375067,1737143434569,-500.0,0.00021917,2]
[349375069,1737143434579,-500.0,0.00021917,2]
[349375071,1737143434588,-500.0,0.00021917,2]
[349375073,1737143434598,-500.0,0.00021917,2]
[349375075,1737143434607,-500.0,0.00021917,2]
[349375077,1737143434616,-500.0,0.00021917,2]
[349375079,1737143434626,-500.0,0.00021917,2]
[349375081,1737143434635,-500.0,0.00021917,2]
[349375083,1737143434644,-500.0,0.00021917,2]
[349375085,1737143434654,-500.0,0.00021917,2]
[349375087,1737143434663,-500.0,0.00021917,2]
[349375089,1737143434673,-500.0,0.00021917,2]
[349375091,1737143434682,-500.0,0.00021917,2]
[349375093,1737143434692,-500.0,0.00021917,2]
[349375095,1737143434701,-500.0,0.00021917,2]
[349375097,1737143434710,-500.0,0.00021917,2]
[349375099,1737143434720,-500.0,0.00021917,2]
[349375101,1737143434730,-500.0,0.00021917,2]
[349375103,1737143434739,-500.0,0.00021917,2]
[349375105,1737143434749,-500.0,0.00021917,2]
[349375107,1737143434758,-500.0,0.00021917,2]
[349375109,1737143434767,-500.0,0.00021917,2]
[349375111,1737143434777,-500.0,0.00021917,2]
[349375113,1737143434786,-500.0,0.00021917,2]
[349375115,1737143434796,-500.0,0.00021917,2]
[349375117,1737143434804,-500.0,0.00021917,2]
[349375119,1737143434814,-500.0,0.00021917,2]
[349375121,1737143434823,-500.0,0.00021917,2]
[349375123,1737143434833,-500.0,0.00021917,2]
[349375125,1737143434843,-500.0,0.00021917,2]
[349375127,1737143434852,-500.0,0.00021917,2]
[349375129,1737143434862,-500.0,0.00021917,2]
[349375131,1737143434873,-295.47970579,0.00021917,2]
[349375133,1737143434882,-500.0,0.00021917,2]
[349375135,1737143434892,-500.0,0.00021917,2]
[349375137,1737143434902,-500.0,0.00021917,2]
[349375139,1737143434913,-500.0,0.00021917,2]